[Event "Titled Tuesday Blitz October 25 Late 2022"]
[White "Barbero Sendic, Alejandro"]
[Black "Barash, Anton"]
[WhiteFideId "3001288"]
[BlackFideId "30935229"]
[WhiteElo "2314"]
[BlackElo "2281"]
[Result "1-0"]
[Round "04"]
[TimeControl "180+1"]
[Date "2022.10.26"]
[WhiteClock "0:01:50"]
[BlackClock "0:00:52"]

1. d4 {[%clk 0:03:00]}  Nf6 {[%clk 0:02:58]} 2. Nc3 {[%clk 0:03:00]}  g6 {[%clk 0:02:57]} 3. e4 {[%clk 0:02:56]}  d6 {[%clk 0:02:56]} 4. Nf3 {[%clk 0:02:55]}  Bg7 {[%clk 0:02:56]} 5. Be2 {[%clk 0:02:55]}  O-O {[%clk 0:02:57]} 6. O-O {[%clk 0:02:55]}  c5 {[%clk 0:02:57]} 7. d5 {[%clk 0:02:40]}  a6 {[%clk 0:02:53]} 8. a4 {[%clk 0:02:39]}  e5 {[%clk 0:02:20]} 9. dxe6 {[%clk 0:02:38]}  Bxe6 {[%clk 0:02:17]} 10. Bg5 {[%clk 0:02:28]}  Qb6 {[%clk 0:02:12]} 11. Qd2 {[%clk 0:02:05]}  Qb4 {[%clk 0:01:40]} 12. Bxf6 {[%clk 0:01:56]}  Bxf6 {[%clk 0:01:39]} 13. Nd5 {[%clk 0:01:57]}  Bxd5 {[%clk 0:01:21]} 14. Qxd5 {[%clk 0:01:57]}  Rd8 {[%clk 0:01:09]} 15. Bc4 {[%clk 0:01:55]}  Bxb2 {[%clk 0:00:54]} 16. Qxf7+ {[%clk 0:01:52]}  Kh8 {[%clk 0:00:54]} 17. Ng5 {[%clk 0:01:50]}  Bg7 {[%clk 0:00:53]} 18. Qg8+ {[%clk 0:01:49]}  Rxg8 {[%clk 0:00:52]} 19. Nf7# {[%clk 0:01:50]} 1-0


[Site "https://www.chess.com"]

[Event "Titled Tuesday Blitz October 25 Late 2022"]
[White "Bilan, Danila"]
[Black "Zilleruelo Irizarry, Diego"]
[WhiteFideId "24161918"]
[BlackFideId "3101460"]
[WhiteElo "2203"]
[BlackElo "1998"]
[Result "1/2-1/2"]
[Round "04"]
[TimeControl "180+1"]
[Date "2022.10.26"]
[WhiteClock "0:00:07"]
[BlackClock "0:00:08"]

1. d4 {[%clk 0:02:51]}  d5 {[%clk 0:02:59]} 2. Nf3 {[%clk 0:02:51]}  e6 {[%clk 0:02:59]} 3. g3 {[%clk 0:02:46]}  Nf6 {[%clk 0:02:58]} 4. Bg2 {[%clk 0:02:47]}  Be7 {[%clk 0:02:59]} 5. O-O {[%clk 0:02:47]}  O-O {[%clk 0:03:00]} 6. c4 {[%clk 0:02:47]}  c6 {[%clk 0:03:00]} 7. Qc2 {[%clk 0:02:47]}  Nbd7 {[%clk 0:02:58]} 8. Nbd2 {[%clk 0:02:47]}  b6 {[%clk 0:02:58]} 9. e4 {[%clk 0:02:46]}  dxe4 {[%clk 0:02:57]} 10. Nxe4 {[%clk 0:02:47]}  Nxe4 {[%clk 0:02:58]} 11. Qxe4 {[%clk 0:02:48]}  Bb7 {[%clk 0:02:58]} 12. Bf4 {[%clk 0:02:47]}  Nf6 {[%clk 0:02:58]} 13. Qc2 {[%clk 0:02:45]}  c5 {[%clk 0:02:57]} 14. Rad1 {[%clk 0:02:36]}  Qc8 {[%clk 0:02:54]} 15. b3 {[%clk 0:02:26]}  Rd8 {[%clk 0:02:50]} 16. dxc5 {[%clk 0:02:18]}  Qxc5 {[%clk 0:02:46]} 17. Rxd8+ {[%clk 0:02:13]}  Rxd8 {[%clk 0:02:45]} 18. Be3 {[%clk 0:02:04]}  Qc8 {[%clk 0:02:35]} 19. Rd1 {[%clk 0:02:03]}  Be4 {[%clk 0:02:33]} 20. Rxd8+ {[%clk 0:01:55]}  Qxd8 {[%clk 0:02:34]} 21. Qd2 {[%clk 0:01:55]}  Qxd2 {[%clk 0:02:31]} 22. Nxd2 {[%clk 0:01:56]}  Bxg2 {[%clk 0:02:26]} 23. Kxg2 {[%clk 0:01:56]}  Ng4 {[%clk 0:02:24]} 24. h3 {[%clk 0:01:36]}  Nxe3+ {[%clk 0:02:23]} 25. fxe3 {[%clk 0:01:37]}  Kf8 {[%clk 0:02:22]} 26. Kf3 {[%clk 0:01:36]}  Ke8 {[%clk 0:02:21]} 27. Ke4 {[%clk 0:01:33]}  Kd7 {[%clk 0:02:21]} 28. Nf3 {[%clk 0:01:28]}  Bf6 {[%clk 0:02:14]} 29. g4 {[%clk 0:01:24]}  Kd6 {[%clk 0:02:01]} 30. Ne1 {[%clk 0:01:11]}  g6 {[%clk 0:01:53]} 31. Nd3 {[%clk 0:01:06]}  a5 {[%clk 0:01:52]} 32. Ne1 {[%clk 0:00:45]}  Kc5 {[%clk 0:01:41]} 33. Kd3 {[%clk 0:00:42]}  Kb4 {[%clk 0:01:37]} 34. Nc2+ {[%clk 0:00:41]}  Kc5 {[%clk 0:01:37]} 35. a3 {[%clk 0:00:42]}  Be7 {[%clk 0:01:26]} 36. b4+ {[%clk 0:00:35]}  axb4 {[%clk 0:01:24]} 37. axb4+ {[%clk 0:00:36]}  Kc6 {[%clk 0:01:25]} 38. Nd4+ {[%clk 0:00:35]}  Kc7 {[%clk 0:01:23]} 39. b5 {[%clk 0:00:35]}  Bc5 {[%clk 0:01:10]} 40. Nf3 {[%clk 0:00:32]}  f6 {[%clk 0:00:54]} 41. Nd2 {[%clk 0:00:31]}  Be7 {[%clk 0:00:51]} 42. Ne4 {[%clk 0:00:27]}  f5 {[%clk 0:00:49]} 43. Nd2 {[%clk 0:00:23]}  e5 {[%clk 0:00:44]} 44. gxf5 {[%clk 0:00:19]}  gxf5 {[%clk 0:00:44]} 45. e4 {[%clk 0:00:14]}  f4 {[%clk 0:00:44]} 46. Nb3 {[%clk 0:00:09]}  h5 {[%clk 0:00:41]} 47. Ke2 {[%clk 0:00:09]}  Kd7 {[%clk 0:00:38]} 48. Kf3 {[%clk 0:00:10]}  Ke6 {[%clk 0:00:35]} 49. Ke2 {[%clk 0:00:10]}  Kd7 {[%clk 0:00:29]} 50. Kd3 {[%clk 0:00:09]}  Ke6 {[%clk 0:00:28]} 51. Nd2 {[%clk 0:00:08]}  Bc5 {[%clk 0:00:27]} 52. Nf3 {[%clk 0:00:07]}  Kf6 {[%clk 0:00:26]} 53. Nh4 {[%clk 0:00:07]}  Kg5 {[%clk 0:00:25]} 54. Nf5 {[%clk 0:00:08]}  f3 {[%clk 0:00:23]} 55. Ne3 {[%clk 0:00:04]}  Kf4 {[%clk 0:00:17]} 56. Nf5 {[%clk 0:00:05]}  f2 {[%clk 0:00:15]} 57. Ke2 {[%clk 0:00:05]}  Kxe4 {[%clk 0:00:14]} 58. Ng3+ {[%clk 0:00:06]}  Kd4 {[%clk 0:00:13]} 59. Nxh5 {[%clk 0:00:06]}  Kxc4 {[%clk 0:00:14]} 60. Nf6 {[%clk 0:00:06]}  Kxb5 {[%clk 0:00:12]} 61. Ne4 {[%clk 0:00:06]}  Be7 {[%clk 0:00:12]} 62. Kxf2 {[%clk 0:00:06]}  Kc4 {[%clk 0:00:12]} 63. Ke3 {[%clk 0:00:06]}  b5 {[%clk 0:00:12]} 64. Nd2+ {[%clk 0:00:06]}  Kc3 {[%clk 0:00:13]} 65. Ne4+ {[%clk 0:00:07]}  Kc2 {[%clk 0:00:13]} 66. Nd2 {[%clk 0:00:06]}  b4 {[%clk 0:00:13]} 67. Ke2 {[%clk 0:00:05]}  Bg5 {[%clk 0:00:12]} 68. Nc4 {[%clk 0:00:05]}  b3 {[%clk 0:00:12]} 69. Kf3 {[%clk 0:00:03]}  Kc3 {[%clk 0:00:12]} 70. Na3 {[%clk 0:00:04]}  Bc1 {[%clk 0:00:12]} 71. Nb5+ {[%clk 0:00:03]}  Kc4 {[%clk 0:00:12]} 72. Nd6+ {[%clk 0:00:03]}  Kd5 {[%clk 0:00:12]} 73. Nb5 {[%clk 0:00:03]}  b2 {[%clk 0:00:11]} 74. Nc3+ {[%clk 0:00:04]}  Kc4 {[%clk 0:00:11]} 75. Nb1 {[%clk 0:00:03]}  Kb3 {[%clk 0:00:12]} 76. Ke2 {[%clk 0:00:02]}  Kc2 {[%clk 0:00:12]} 77. Na3+ {[%clk 0:00:03]}  Kb3 {[%clk 0:00:12]} 78. Nb1 {[%clk 0:00:03]}  Bf4 {[%clk 0:00:12]} 79. Kd3 {[%clk 0:00:03]}  Ka2 {[%clk 0:00:12]} 80. Nc3+ {[%clk 0:00:03]}  Ka1 {[%clk 0:00:12]} 81. Kc2 {[%clk 0:00:04]}  Bg3 {[%clk 0:00:10]} 82. Nb1 {[%clk 0:00:04]}  e4 {[%clk 0:00:10]} 83. Nc3 {[%clk 0:00:05]}  e3 {[%clk 0:00:10]} 84. Kd3 {[%clk 0:00:05]}  Bf2 {[%clk 0:00:10]} 85. Ke2 {[%clk 0:00:06]}  b1=Q {[%clk 0:00:10]} 86. Nxb1 {[%clk 0:00:06]}  Kxb1 {[%clk 0:00:11]} 87. h4 {[%clk 0:00:07]}  Bxh4 {[%clk 0:00:08]} 88. Kxe3 {[%clk 0:00:07]} 1/2-1/2


[Site "https://www.chess.com"]

[Event "Titled Tuesday Blitz October 25 Late 2022"]
[White "Bordi, Kevin"]
[Black "Zakaryan, David"]
[WhiteFideId "621862"]
[BlackFideId "24101923"]
[WhiteElo "2821"]
[BlackElo "2409"]
[Result "1/2-1/2"]
[Round "04"]
[TimeControl "180+1"]
[Date "2022.10.26"]
[WhiteClock "0:00:19"]
[BlackClock "0:00:54"]

1. e4 {[%clk 0:03:00]}  c6 {[%clk 0:02:55]} 2. c4 {[%clk 0:03:00]}  e5 {[%clk 0:02:52]} 3. Nf3 {[%clk 0:02:59]}  d6 {[%clk 0:02:52]} 4. d4 {[%clk 0:03:00]}  Nd7 {[%clk 0:02:52]} 5. Nc3 {[%clk 0:03:00]}  Ngf6 {[%clk 0:02:52]} 6. h3 {[%clk 0:03:00]}  Be7 {[%clk 0:02:51]} 7. Be3 {[%clk 0:03:00]}  O-O {[%clk 0:02:50]} 8. Be2 {[%clk 0:03:01]}  exd4 {[%clk 0:02:48]} 9. Qxd4 {[%clk 0:03:00]}  Re8 {[%clk 0:02:47]} 10. O-O {[%clk 0:03:00]}  Bf8 {[%clk 0:02:45]} 11. Rad1 {[%clk 0:03:00]}  Qa5 {[%clk 0:02:41]} 12. Rfe1 {[%clk 0:02:56]}  Nc5 {[%clk 0:02:37]} 13. Qd2 {[%clk 0:02:41]}  Qc7 {[%clk 0:02:30]} 14. Bxc5 {[%clk 0:02:37]}  dxc5 {[%clk 0:02:29]} 15. Qc2 {[%clk 0:02:18]}  h6 {[%clk 0:02:15]} 16. e5 {[%clk 0:02:12]}  Nh7 {[%clk 0:02:09]} 17. Ne4 {[%clk 0:02:01]}  Bf5 {[%clk 0:01:49]} 18. Nf6+ {[%clk 0:01:54]}  Nxf6 {[%clk 0:01:47]} 19. Qxf5 {[%clk 0:01:55]}  Nh7 {[%clk 0:01:45]} 20. Rd7 {[%clk 0:01:52]}  Qa5 {[%clk 0:01:40]} 21. Bd3 {[%clk 0:01:50]}  Ng5 {[%clk 0:01:38]} 22. Nxg5 {[%clk 0:01:46]}  Qxe1+ {[%clk 0:01:37]} 23. Bf1 {[%clk 0:01:44]}  hxg5 {[%clk 0:01:30]} 24. Qxf7+ {[%clk 0:01:43]}  Kh8 {[%clk 0:01:30]} 25. Qh5+ {[%clk 0:01:37]}  Kg8 {[%clk 0:01:31]} 26. Qf7+ {[%clk 0:01:34]}  Kh8 {[%clk 0:01:31]} 27. g3 {[%clk 0:00:54]}  Rad8 {[%clk 0:00:54]} 28. Qh5+ {[%clk 0:00:46]}  Kg8 {[%clk 0:00:54]} 29. Qf7+ {[%clk 0:00:46]}  Kh8 {[%clk 0:00:54]} 30. Qh5+ {[%clk 0:00:36]}  Kg8 {[%clk 0:00:54]} 31. Qf7+ {[%clk 0:00:19]}  Kh8 {[%clk 0:00:54]} 1/2-1/2


[Site "https://www.chess.com"]

[Event "Titled Tuesday Blitz October 25 Late 2022"]
[White "Bortnyk, Olexandr"]
[Black "Hambleton, Aman"]
[WhiteFideId "14120828"]
[BlackFideId "2606577"]
[WhiteElo "3031"]
[BlackElo "2820"]
[Result "1-0"]
[Round "04"]
[TimeControl "180+1"]
[Date "2022.10.26"]
[WhiteClock "0:00:27"]
[BlackClock "0:00:02"]

1. e4 {[%clk 0:03:00]}  e6 {[%clk 0:02:53]} 2. d4 {[%clk 0:03:00]}  d5 {[%clk 0:02:53]} 3. Nc3 {[%clk 0:03:01]}  Bb4 {[%clk 0:02:53]} 4. Qd3 {[%clk 0:03:01]}  c5 {[%clk 0:02:28]} 5. a3 {[%clk 0:02:42]}  Bxc3+ {[%clk 0:02:16]} 6. bxc3 {[%clk 0:02:42]}  dxe4 {[%clk 0:01:37]} 7. Qxe4 {[%clk 0:02:43]}  Nf6 {[%clk 0:01:34]} 8. Qh4 {[%clk 0:02:43]}  Nc6 {[%clk 0:01:19]} 9. Nf3 {[%clk 0:02:37]}  O-O {[%clk 0:00:57]} 10. Bd3 {[%clk 0:02:33]}  Ne7 {[%clk 0:00:12]} 11. dxc5 {[%clk 0:02:22]}  Qa5 {[%clk 0:00:06]} 12. Qb4 {[%clk 0:02:20]}  Nc6 {[%clk 0:00:05]} 13. Qxa5 {[%clk 0:02:06]}  Nxa5 {[%clk 0:00:06]} 14. Bf4 {[%clk 0:02:06]}  Nd5 {[%clk 0:00:06]} 15. Bd6 {[%clk 0:02:06]}  Re8 {[%clk 0:00:05]} 16. Kd2 {[%clk 0:02:00]}  b6 {[%clk 0:00:03]} 17. Rab1 {[%clk 0:01:54]}  Nb7 {[%clk 0:00:02]} 18. c4 {[%clk 0:01:29]}  Nf6 {[%clk 0:00:02]} 19. Rhe1 {[%clk 0:01:17]}  Nxd6 {[%clk 0:00:02]} 20. cxd6 {[%clk 0:01:17]}  Rd8 {[%clk 0:00:03]} 21. Kc3 {[%clk 0:01:11]}  Rxd6 {[%clk 0:00:04]} 22. Rbd1 {[%clk 0:01:12]}  Kf8 {[%clk 0:00:03]} 23. Ne5 {[%clk 0:01:09]}  Bb7 {[%clk 0:00:03]} 24. g4 {[%clk 0:01:09]}  Rad8 {[%clk 0:00:03]} 25. f3 {[%clk 0:01:00]}  h6 {[%clk 0:00:03]} 26. h4 {[%clk 0:01:00]}  Nd7 {[%clk 0:00:03]} 27. f4 {[%clk 0:00:54]}  Nxe5 {[%clk 0:00:02]} 28. fxe5 {[%clk 0:00:55]}  R6d7 {[%clk 0:00:03]} 29. Re3 {[%clk 0:00:54]}  Ke7 {[%clk 0:00:04]} 30. Rg1 {[%clk 0:00:52]}  Rc7 {[%clk 0:00:04]} 31. g5 {[%clk 0:00:51]}  hxg5 {[%clk 0:00:05]} 32. Rxg5 {[%clk 0:00:50]}  g6 {[%clk 0:00:05]} 33. h5 {[%clk 0:00:50]}  gxh5 {[%clk 0:00:06]} 34. Rxh5 {[%clk 0:00:51]}  Bc6 {[%clk 0:00:07]} 35. Kb2 {[%clk 0:00:46]}  Be8 {[%clk 0:00:07]} 36. Rf3 {[%clk 0:00:46]}  Rc5 {[%clk 0:00:08]} 37. Bg6 {[%clk 0:00:41]}  Rd7 {[%clk 0:00:06]} 38. Rh7 {[%clk 0:00:33]}  Rxe5 {[%clk 0:00:04]} 39. Bxf7 {[%clk 0:00:33]}  Kd8 {[%clk 0:00:02]} 40. Rh8 {[%clk 0:00:32]}  Kc7 {[%clk 0:00:02]} 41. Bxe8 {[%clk 0:00:31]}  Rd8 {[%clk 0:00:03]} 42. Rh7+ {[%clk 0:00:30]}  Kb8 {[%clk 0:00:03]} 43. Bb5 {[%clk 0:00:28]}  Rc5 {[%clk 0:00:02]} 44. Rff7 {[%clk 0:00:28]}  a5 {[%clk 0:00:02]} 45. Rb7+ {[%clk 0:00:27]} 1-0


[Site "https://www.chess.com"]

[Event "Titled Tuesday Blitz October 25 Late 2022"]
[White "Boyer, Mahel"]
[Black "Varriale, Luca"]
[WhiteFideId "45102422"]
[BlackFideId "882461"]
[WhiteElo "2454"]
[BlackElo "2245"]
[Result "1-0"]
[Round "04"]
[TimeControl "180+1"]
[Date "2022.10.26"]
[WhiteClock "0:00:05"]
[BlackClock "0:00:02"]

1. e4 {[%clk 0:01:54]}  c5 {[%clk 0:02:57]} 2. Nf3 {[%clk 0:01:51]}  g6 {[%clk 0:02:57]} 3. Bc4 {[%clk 0:01:49]}  Bg7 {[%clk 0:02:53]} 4. O-O {[%clk 0:01:47]}  Nc6 {[%clk 0:02:52]} 5. Re1 {[%clk 0:01:40]}  e6 {[%clk 0:02:46]} 6. c3 {[%clk 0:01:40]}  Nge7 {[%clk 0:02:42]} 7. Bb3 {[%clk 0:01:21]}  O-O {[%clk 0:02:40]} 8. d4 {[%clk 0:01:20]}  cxd4 {[%clk 0:02:40]} 9. cxd4 {[%clk 0:01:20]}  d5 {[%clk 0:02:40]} 10. e5 {[%clk 0:01:18]}  Qb6 {[%clk 0:02:36]} 11. Nc3 {[%clk 0:01:12]}  Nf5 {[%clk 0:02:35]} 12. Na4 {[%clk 0:01:07]}  Qd8 {[%clk 0:02:21]} 13. Bg5 {[%clk 0:01:03]}  f6 {[%clk 0:02:18]} 14. exf6 {[%clk 0:01:04]}  Bxf6 {[%clk 0:02:18]} 15. h4 {[%clk 0:00:28]}  h6 {[%clk 0:02:06]} 16. Be3 {[%clk 0:00:18]}  Kh7 {[%clk 0:01:58]} 17. h5 {[%clk 0:00:17]}  g5 {[%clk 0:01:55]} 18. Qd3 {[%clk 0:00:16]}  g4 {[%clk 0:01:44]} 19. Nh2 {[%clk 0:00:16]}  Rg8 {[%clk 0:01:44]} 20. g3 {[%clk 0:00:10]}  Qe8 {[%clk 0:01:42]} 21. Nc5 {[%clk 0:00:09]}  Qxh5 {[%clk 0:01:39]} 22. Bf4 {[%clk 0:00:08]}  Nxd4 {[%clk 0:01:34]} 23. Be5 {[%clk 0:00:07]}  Bxe5 {[%clk 0:01:24]} 24. Rxe5 {[%clk 0:00:08]}  Rg6 {[%clk 0:01:15]} 25. Rae1 {[%clk 0:00:05]}  b6 {[%clk 0:00:52]} 26. Qxd4 {[%clk 0:00:05]}  Nxd4 {[%clk 0:00:46]} 27. Rxh5 {[%clk 0:00:05]}  bxc5 {[%clk 0:00:46]} 28. Bd1 {[%clk 0:00:06]}  Rb8 {[%clk 0:00:34]} 29. b3 {[%clk 0:00:03]}  c4 {[%clk 0:00:32]} 30. Nxg4 {[%clk 0:00:03]}  c3 {[%clk 0:00:28]} 31. Ne5 {[%clk 0:00:03]}  c2 {[%clk 0:00:26]} 32. Bxc2 {[%clk 0:00:03]}  Nxc2 {[%clk 0:00:25]} 33. Rc1 {[%clk 0:00:04]}  Nd4 {[%clk 0:00:15]} 34. Rd1 {[%clk 0:00:04]}  Nb5 {[%clk 0:00:08]} 35. Nxg6 {[%clk 0:00:03]}  Kxg6 {[%clk 0:00:09]} 36. Rh4 {[%clk 0:00:03]}  Nd6 {[%clk 0:00:09]} 37. f3 {[%clk 0:00:03]}  Bb7 {[%clk 0:00:07]} 38. Rg4+ {[%clk 0:00:03]}  Kf6 {[%clk 0:00:07]} 39. Rf4+ {[%clk 0:00:03]}  Kg6 {[%clk 0:00:05]} 40. Re1 {[%clk 0:00:04]}  Bc8 {[%clk 0:00:04]} 41. Ra4 {[%clk 0:00:04]}  Rb7 {[%clk 0:00:03]} 42. Ra6 {[%clk 0:00:04]}  Nf5 {[%clk 0:00:03]} 43. g4 {[%clk 0:00:03]}  Nd4 {[%clk 0:00:03]} 44. Kf2 {[%clk 0:00:03]}  Rc7 {[%clk 0:00:02]} 45. Rd6 {[%clk 0:00:03]}  Rc2+ {[%clk 0:00:02]} 46. Ke3 {[%clk 0:00:04]}  Nc6 {[%clk 0:00:02]} 47. Kd3 {[%clk 0:00:04]}  Nb4+ {[%clk 0:00:02]} 48. Kd4 {[%clk 0:00:05]}  Rd2+ {[%clk 0:00:02]} 49. Kc3 {[%clk 0:00:05]}  Rd3+ {[%clk 0:00:01]} 50. Kxb4 {[%clk 0:00:05]}  Rxf3 {[%clk 0:00:02]} 51. Rc6 {[%clk 0:00:04]}  Rf4+ {[%clk 0:00:02]} 52. Ka3 {[%clk 0:00:04]}  Bd7 {[%clk 0:00:02]} 53. Rc7 {[%clk 0:00:05]} 1-0


[Site "https://www.chess.com"]

[Event "Titled Tuesday Blitz October 25 Late 2022"]
[White "Buchenau, Frank"]
[Black "Jaferian, Koosha"]
[WhiteFideId "4604350"]
[BlackFideId "12507440"]
[WhiteElo "2157"]
[BlackElo "2127"]
[Result "1-0"]
[Round "04"]
[TimeControl "180+1"]
[Date "2022.10.26"]
[WhiteClock "0:00:11"]
[BlackClock "0:00:12"]

1. e4 {[%clk 0:03:00]}  c6 {[%clk 0:03:00]} 2. Nf3 {[%clk 0:03:00]}  d5 {[%clk 0:03:01]} 3. Nc3 {[%clk 0:02:59]}  Bg4 {[%clk 0:03:00]} 4. d4 {[%clk 0:02:58]}  e6 {[%clk 0:02:59]} 5. Bd3 {[%clk 0:02:57]}  dxe4 {[%clk 0:02:59]} 6. Nxe4 {[%clk 0:02:56]}  Nf6 {[%clk 0:02:54]} 7. c3 {[%clk 0:02:53]}  Be7 {[%clk 0:02:54]} 8. h3 {[%clk 0:02:51]}  Bh5 {[%clk 0:02:53]} 9. O-O {[%clk 0:02:47]}  Nbd7 {[%clk 0:02:54]} 10. Bf4 {[%clk 0:02:46]}  Nxe4 {[%clk 0:02:54]} 11. Bxe4 {[%clk 0:02:46]}  Nf6 {[%clk 0:02:55]} 12. Bc2 {[%clk 0:02:42]}  O-O {[%clk 0:02:52]} 13. Re1 {[%clk 0:02:41]}  Bd6 {[%clk 0:02:52]} 14. Be5 {[%clk 0:02:25]}  Nd5 {[%clk 0:02:47]} 15. c4 {[%clk 0:02:20]}  Nb4 {[%clk 0:02:19]} 16. Be4 {[%clk 0:02:19]}  Bg6 {[%clk 0:02:10]} 17. Bxg6 {[%clk 0:02:12]}  hxg6 {[%clk 0:02:11]} 18. a3 {[%clk 0:02:02]}  Na6 {[%clk 0:02:09]} 19. b4 {[%clk 0:02:02]}  Nc7 {[%clk 0:02:08]} 20. Qc2 {[%clk 0:01:46]}  b5 {[%clk 0:01:57]} 21. Rac1 {[%clk 0:01:41]}  Rc8 {[%clk 0:01:52]} 22. h4 {[%clk 0:01:15]}  bxc4 {[%clk 0:01:52]} 23. Qxc4 {[%clk 0:01:13]}  Nd5 {[%clk 0:01:52]} 24. g3 {[%clk 0:01:06]}  a5 {[%clk 0:01:46]} 25. Bxd6 {[%clk 0:01:04]}  Qxd6 {[%clk 0:01:46]} 26. b5 {[%clk 0:00:58]}  Qxa3 {[%clk 0:01:45]} 27. Kg2 {[%clk 0:00:52]}  Nb6 {[%clk 0:01:15]} 28. Qc5 {[%clk 0:00:47]}  Qxc5 {[%clk 0:01:15]} 29. dxc5 {[%clk 0:00:47]}  Nd5 {[%clk 0:01:11]} 30. b6 {[%clk 0:00:46]}  Nb4 {[%clk 0:00:57]} 31. Red1 {[%clk 0:00:45]}  Rfd8 {[%clk 0:00:54]} 32. Ne5 {[%clk 0:00:35]}  Kf8 {[%clk 0:00:33]} 33. b7 {[%clk 0:00:31]}  Rb8 {[%clk 0:00:30]} 34. Rxd8+ {[%clk 0:00:24]}  Rxd8 {[%clk 0:00:30]} 35. b8=Q {[%clk 0:00:23]}  Rxb8 {[%clk 0:00:30]} 36. Nd7+ {[%clk 0:00:23]}  Ke7 {[%clk 0:00:31]} 37. Nxb8 {[%clk 0:00:24]}  Kd8 {[%clk 0:00:28]} 38. Rd1+ {[%clk 0:00:20]}  Kc7 {[%clk 0:00:29]} 39. Nd7 {[%clk 0:00:20]}  a4 {[%clk 0:00:22]} 40. Ne5 {[%clk 0:00:19]}  a3 {[%clk 0:00:23]} 41. Ra1 {[%clk 0:00:16]}  a2 {[%clk 0:00:21]} 42. Nxf7 {[%clk 0:00:14]}  Kb7 {[%clk 0:00:17]} 43. Ng5 {[%clk 0:00:13]}  Ka6 {[%clk 0:00:17]} 44. Nxe6 {[%clk 0:00:13]}  Kb5 {[%clk 0:00:18]} 45. Nxg7 {[%clk 0:00:13]}  Kxc5 {[%clk 0:00:18]} 46. g4 {[%clk 0:00:12]}  Kd4 {[%clk 0:00:18]} 47. h5 {[%clk 0:00:12]}  gxh5 {[%clk 0:00:18]} 48. gxh5 {[%clk 0:00:13]}  Ke5 {[%clk 0:00:19]} 49. h6 {[%clk 0:00:12]}  Kf6 {[%clk 0:00:20]} 50. Kg3 {[%clk 0:00:07]}  Kg6 {[%clk 0:00:19]} 51. Nf5 {[%clk 0:00:07]}  c5 {[%clk 0:00:16]} 52. Kg4 {[%clk 0:00:06]}  c4 {[%clk 0:00:11]} 53. Rh1 {[%clk 0:00:06]}  Nd3 {[%clk 0:00:08]} 54. h7 {[%clk 0:00:04]}  Nxf2+ {[%clk 0:00:08]} 55. Kf3 {[%clk 0:00:04]}  Nxh1 {[%clk 0:00:04]} 56. h8=Q {[%clk 0:00:05]}  Kxf5 {[%clk 0:00:04]} 57. Qxh1 {[%clk 0:00:04]}  Ke5 {[%clk 0:00:04]} 58. Qa1+ {[%clk 0:00:05]}  Kd5 {[%clk 0:00:04]} 59. Ke2 {[%clk 0:00:05]}  Kc5 {[%clk 0:00:05]} 60. Kd2 {[%clk 0:00:06]}  Kb4 {[%clk 0:00:06]} 61. Kc2 {[%clk 0:00:06]}  Ka4 {[%clk 0:00:06]} 62. Kb2 {[%clk 0:00:06]}  Kb4 {[%clk 0:00:07]} 63. Qxa2 {[%clk 0:00:06]}  c3+ {[%clk 0:00:07]} 64. Kc2 {[%clk 0:00:07]}  Kb5 {[%clk 0:00:07]} 65. Qb3+ {[%clk 0:00:08]}  Ka5 {[%clk 0:00:07]} 66. Qxc3+ {[%clk 0:00:09]}  Ka4 {[%clk 0:00:08]} 67. Qb2 {[%clk 0:00:09]}  Ka5 {[%clk 0:00:09]} 68. Kc3 {[%clk 0:00:10]}  Ka6 {[%clk 0:00:10]} 69. Kc4 {[%clk 0:00:11]}  Ka7 {[%clk 0:00:11]} 70. Kc5 {[%clk 0:00:11]}  Ka8 {[%clk 0:00:11]} 71. Kc6 {[%clk 0:00:11]}  Ka7 {[%clk 0:00:12]} 72. Qb7# {[%clk 0:00:11]} 1-0


[Site "https://www.chess.com"]

[Event "Titled Tuesday Blitz October 25 Late 2022"]
[White "Buscar, Michael"]
[Black "Burke, Paul"]
[WhiteFideId "2603616"]
[BlackFideId "2605767"]
[WhiteElo "2010"]
[BlackElo "1847"]
[Result "1-0"]
[Round "04"]
[TimeControl "180+1"]
[Date "2022.10.26"]
[WhiteClock "0:01:44"]
[BlackClock "0:00:19"]

1. Nf3 {[%clk 0:03:00]}  a6 {[%clk 0:02:59]} 2. b3 {[%clk 0:03:01]}  d6 {[%clk 0:02:59]} 3. Bb2 {[%clk 0:03:01]}  Nd7 {[%clk 0:03:00]} 4. c4 {[%clk 0:02:59]}  Ngf6 {[%clk 0:02:57]} 5. e3 {[%clk 0:03:00]}  g6 {[%clk 0:02:57]} 6. d3 {[%clk 0:02:59]}  Bg7 {[%clk 0:02:57]} 7. Be2 {[%clk 0:03:00]}  O-O {[%clk 0:02:57]} 8. h4 {[%clk 0:03:00]}  h6 {[%clk 0:02:56]} 9. Nbd2 {[%clk 0:03:00]}  e5 {[%clk 0:02:56]} 10. Ne4 {[%clk 0:02:59]}  Nxe4 {[%clk 0:02:54]} 11. dxe4 {[%clk 0:02:59]}  Nf6 {[%clk 0:02:51]} 12. Nd2 {[%clk 0:02:59]}  c6 {[%clk 0:02:38]} 13. h5 {[%clk 0:02:58]}  Qa5 {[%clk 0:02:35]} 14. hxg6 {[%clk 0:02:53]}  fxg6 {[%clk 0:02:34]} 15. O-O {[%clk 0:02:54]}  Be6 {[%clk 0:02:20]} 16. Qc2 {[%clk 0:02:53]}  Rad8 {[%clk 0:02:16]} 17. Bc3 {[%clk 0:02:52]}  Qc7 {[%clk 0:02:15]} 18. Rad1 {[%clk 0:02:52]}  Bg4 {[%clk 0:02:05]} 19. f3 {[%clk 0:02:46]}  Be6 {[%clk 0:02:03]} 20. Rf2 {[%clk 0:02:46]}  Nh5 {[%clk 0:01:58]} 21. Nf1 {[%clk 0:02:43]}  Qe7 {[%clk 0:01:55]} 22. Bd3 {[%clk 0:02:32]}  Qg5 {[%clk 0:01:47]} 23. Be1 {[%clk 0:02:23]}  Ng3 {[%clk 0:01:37]} 24. Rfd2 {[%clk 0:02:16]}  Nxf1 {[%clk 0:01:35]} 25. Bxf1 {[%clk 0:02:16]}  Qxe3+ {[%clk 0:01:32]} 26. Bf2 {[%clk 0:02:16]}  Qg5 {[%clk 0:01:31]} 27. Rxd6 {[%clk 0:02:16]}  Rxd6 {[%clk 0:01:21]} 28. Rxd6 {[%clk 0:02:17]}  Bh3 {[%clk 0:01:20]} 29. Qd2 {[%clk 0:02:11]}  Qxd2 {[%clk 0:01:15]} 30. Rxd2 {[%clk 0:02:10]}  Bc8 {[%clk 0:01:10]} 31. Rd6 {[%clk 0:02:08]}  Bf6 {[%clk 0:01:05]} 32. c5 {[%clk 0:02:05]}  Kg7 {[%clk 0:01:04]} 33. Bc4 {[%clk 0:02:05]}  Rd8 {[%clk 0:01:01]} 34. Bg3 {[%clk 0:01:53]}  Rxd6 {[%clk 0:00:56]} 35. cxd6 {[%clk 0:01:54]}  Bd7 {[%clk 0:00:55]} 36. f4 {[%clk 0:01:52]}  exf4 {[%clk 0:00:54]} 37. Bxf4 {[%clk 0:01:52]}  Bd4+ {[%clk 0:00:49]} 38. Kf1 {[%clk 0:01:51]}  g5 {[%clk 0:00:48]} 39. Bg3 {[%clk 0:01:50]}  h5 {[%clk 0:00:48]} 40. e5 {[%clk 0:01:47]}  h4 {[%clk 0:00:42]} 41. Bh2 {[%clk 0:01:46]}  b5 {[%clk 0:00:19]} 42. e6 {[%clk 0:01:44]} 1-0


[Site "https://www.chess.com"]